fUSD/lending_fUSD_20241001
["ID","MTS","AMOUNT","RATE_DAILY","PERIOD"]
[339667419,1727820749893,-500.0,0.00039178,120]
[339667420,1727820749902,-793.38,0.00039178,120]
[339667421,1727820749911,-500.0,0.00039178,120]
[339667422,1727820749921,-500.0,0.00039178,120]
[339667423,1727820749930,-500.0,0.00039178,120]
[339667424,1727820749939,-2627.22,0.00039178,120]
[339667425,1727820749948,-1639.8,0.00039178,120]
[339667426,1727820749958,-3122.29,0.00039178,120]
[339667427,1727820749967,-500.0,0.00039178,120]
[339667428,1727820749976,-725.25,0.00039178,120]
[339667429,1727820749985,-1519.29,0.00039178,120]
[339667430,1727820749994,-500.0,0.00039178,120]
[339667431,1727820750003,-5376.69,0.00039178,120]
[339667432,1727820750012,-957.13,0.00039178,120]
[339667433,1727820750021,-500.0,0.00039178,120]
[339667434,1727820750034,-500.0,0.00039178,120]
[339667435,1727820750043,-2668.85,0.00039178,120]
[339667436,1727820750052,-742.86,0.00039178,120]
[339667437,1727820750060,-500.0,0.00039178,120]
[339667438,1727820750070,-500.0,0.00039178,120]
[339667439,1727820750078,-842.39,0.00039178,120]
[339667440,1727820750087,-1188.41,0.00039178,120]
[339667441,1727820750096,-332.61243527,0.00039178,120]
[339667442,1727820750106,-500.0,0.00039178,120]
[339667443,1727820750115,-977.8,0.00039178,120]
[339667444,1727820750124,-1574.81,0.00039178,120]
[339667445,1727820750133,-500.0,0.00039178,120]
[339667446,1727820750142,-3167.05,0.00039178,120]
[339667447,1727820750151,-835.75,0.00039178,120]
[339667448,1727820750160,-592.48,0.00039178,120]
[339667449,1727820750169,-500.0,0.00039178,120]
[339667450,1727820750178,-500.0,0.00039178,120]
[339667451,1727820750188,-1628.64,0.00039178,120]
[339667452,1727820750197,-500.0,0.00039178,120]
[339667453,1727820750205,-767.06,0.00039178,120]
[339667454,1727820750214,-500.0,0.00039178,120]
[339667455,1727820750223,-500.0,0.00039178,120]
[339667456,1727820750232,-1332.74,0.00039178,120]
[339667457,1727820750241,-500.0,0.00039178,120]
[339667458,1727820750251,-891.92,0.00039178,120]
[339667459,1727820750260,-879.96,0.00039178,120]
[339667460,1727820750269,-870.15,0.00039178,120]
[339667461,1727820750279,-198.2733942,0.00039178,120]
[339667462,1727820750288,-3053.04,0.00039178,120]
[339667463,1727820750297,-500.0,0.00039178,120]
[339667464,1727820750306,-500.0,0.00039178,120]
[339667465,1727820750315,-500.0,0.00039178,120]
[339667466,1727820750325,-500.0,0.00039178,120]
[339667467,1727820750334,-1765.25,0.00039178,120]
[339667468,1727820750343,-500.0,0.00039178,120]
[339667469,1727820750352,-2848.92,0.00039178,120]
[339667470,1727820750361,-500.0,0.00039178,120]
[339667471,1727820750370,-2618.25,0.00039178,120]
[339667472,1727820750379,-733.76,0.00039178,120]
[339667473,1727820750389,-500.0,0.00039178,120]
[339667474,1727820750398,-1452.8,0.00039178,120]
[339667475,1727820750407,-922.35,0.00039178,2]
[339667476,1727820750417,-745.69,0.00039178,120]
[339667477,1727820750426,-515.59,0.00039178,120]
[339667478,1727820750435,-504.12,0.00039178,120]
[339667479,1727820750444,-748.91,0.00039178,30]
[339667480,1727820750453,-5228.9,0.00039178,120]
[339667481,1727820750462,-500.0,0.00039178,120]
[339667482,1727820750471,-500.0,0.00039178,120]
[339667483,1727820750480,-1099.12,0.00039178,120]
[339667484,1727820750489,-500.0,0.00039178,120]
[339667485,1727820750499,-925.91,0.00039178,120]
[339667486,1727820750507,-3838.42,0.00039178,120]
[339667487,1727820750516,-500.0,0.00039178,120]
[339667488,1727820750528,-562.84,0.00039178,120]
[339667489,1727820750537,-983.15,0.00039178,120]
[339667490,1727820750547,-585.77,0.00039178,120]
[339667491,1727820750556,-930.9,0.00039178,120]
[339667492,1727820750565,-500.0,0.00039178,120]
[339667493,1727820750574,-500.0,0.00039178,120]
[339667494,1727820750584,-1347.98,0.00039178,120]
[339667495,1727820750593,-2842.0,0.00039178,120]
[339667496,1727820750602,-500.0,0.00039178,120]
[339667497,1727820750611,-2740.56,0.00039178,120]
[339667498,1727820750622,-1496.77,0.00039178,15]
[339667499,1727820750631,-500.0,0.00039178,120]
[339667500,1727820750641,-678.65,0.00039178,120]
[339667501,1727820750652,-1862.99,0.00039178,120]
[339667502,1727820750661,-500.0,0.00039178,120]
[339667503,1727820750670,-500.0,0.00039178,120]
[339667504,1727820750679,-1682.2,0.00039178,120]
[339667505,1727820750690,-1067.94,0.00039178,120]
[339667506,1727820750699,-500.0,0.00039178,120]
[339667507,1727820750708,-871.43,0.00039178,120]
[339667508,1727820750718,-500.0,0.00039178,120]
[339667509,1727820750727,-500.0,0.00039178,120]
[339667510,1727820750736,-625.16,0.00039178,120]
[339667511,1727820750745,-1476.53,0.00039178,120]
[339667512,1727820750754,-500.0,0.00039178,120]
[339667513,1727820750763,-272.98623198,0.00039178,120]
[339667514,1727820750772,-1931.66,0.00039178,120]
[339667515,1727820750792,-1349.45,0.00039178,120]
[339667516,1727820750802,-1300.41,0.00039178,120]
[339667517,1727820750811,-500.0,0.00039178,120]
[339667518,1727820750819,-3574.07,0.00039178,120]
[339667519,1727820750828,-500.0,0.00039178,120]
[339667520,1727820750837,-920.76,0.00039178,120]
[339667521,1727820750846,-3172.4,0.00039178,120]
[339667522,1727820750855,-500.0,0.00039178,120]
[339667523,1727820750864,-1193.1,0.00039178,120]
[339667524,1727820750873,-500.0,0.00039178,120]
[339667525,1727820750882,-500.0,0.00039178,120]
[339667526,1727820750891,-1359.38,0.00039178,120]
[339667527,1727820750900,-500.0,0.00039178,120]
[339667528,1727820750909,-1219.73,0.00039178,120]
[339667529,1727820750919,-983.64,0.00039178,120]
[339667530,1727820750927,-500.0,0.00039178,120]
[339667531,1727820750936,-856.28,0.00039178,120]
[339667532,1727820750945,-1226.11,0.00039178,120]
[339667533,1727820750955,-3907.21,0.00039178,120]
[339667534,1727820750964,-2101.16,0.00039178,120]
[339667535,1727820750973,-663.63,0.00039178,120]
[339667536,1727820750982,-500.0,0.00039178,120]
[339667537,1727820750991,-500.0,0.00039178,120]
[339667538,1727820751000,-5292.68,0.00039178,120]
[339667539,1727820751009,-2234.39,0.00039178,120]
[339667540,1727820751018,-500.0,0.00039178,120]
[339667541,1727820751031,-1469.82,0.00039178,120]
[339667542,1727820751040,-500.0,0.00039178,120]
[339667543,1727820751049,-500.0,0.00039178,120]
[339667544,1727820751058,-1070.08,0.00039178,120]
[339667545,1727820751067,-500.0,0.00039178,120]
[339667546,1727820751076,-468.26393934,0.00039178,120]
[339667547,1727820751084,-500.0,0.00039178,120]
[339667548,1727820751094,-500.0,0.00039178,120]
[339667549,1727820751103,-1923.04,0.00039178,120]
[339667550,1727820751113,-857.77,0.00039178,120]
[339667551,1727820751122,-2261.0,0.00039178,120]
[339667552,1727820751131,-1062.38,0.00039178,120]
[339667553,1727820751140,-500.0,0.00039178,120]
[339667554,1727820751150,-506.82862608,0.00039178,120]
[339667555,1727820751160,-500.0,0.00039178,120]
[339667556,1727820751169,-907.03,0.00039178,120]
[339667557,1727820751178,-1358.61,0.00039178,120]
[339667558,1727820751187,-500.0,0.00039178,120]
[339667559,1727820751197,-4156.88,0.00039178,120]
[339667560,1727820751206,-528.25,0.00039178,120]
[339667561,1727820751215,-1099.94,0.00039178,120]
[339667562,1727820751224,-399.08591621,0.00039178,120]
[339667563,1727820751233,-660.82,0.00039178,120]
[339667564,1727820751243,-3441.48,0.00039178,7]
[339667565,1727820751252,-2560.29,0.00039178,120]
[339667566,1727820751262,-580.8,0.00039178,120]
[339667567,1727820751271,-500.0,0.00039178,120]
[339667568,1727820751283,-985.41,0.00039178,120]
[339667569,1727820751292,-1225.48,0.00039178,120]
[339667570,1727820751301,-1575.11,0.00039178,120]
[339667571,1727820751310,-500.0,0.00039178,120]
[339667572,1727820751320,-967.16,0.00039178,120]
[339667573,1727820751330,-1027.36,0.00039178,120]
[339667574,1727820751339,-2849.3,0.00039178,120]
[339667575,1727820751349,-1745.08,0.00039178,120]
[339667576,1727820751358,-705.04,0.00039178,120]
[339667577,1727820751367,-500.0,0.00039178,120]
[339667578,1727820751377,-500.0,0.00039178,120]
[339667579,1727820751386,-529.51,0.00039178,120]
[339667580,1727820751395,-500.0,0.00039178,120]
[339667581,1727820751405,-3262.83,0.00039178,120]
[339667582,1727820751414,-1708.87,0.00039178,120]
[339667583,1727820751423,-500.0,0.00039178,120]
[339667584,1727820751432,-500.0,0.00039178,90]
[339667585,1727820751442,-853.84,0.00039178,120]
[339667586,1727820751451,-5703.42,0.00039178,120]
[339667587,1727820751460,-3136.81,0.00039178,120]
[339667588,1727820751470,-431.72447734,0.00039178,120]
[339667589,1727820751479,-500.0,0.00039178,120]
[339667590,1727820751488,-4081.48,0.00039178,120]
[339667591,1727820751498,-500.0,0.00039178,120]
[339667592,1727820751507,-2086.44,0.00039178,120]
[339667593,1727820751517,-3712.01,0.00039178,120]
[339667594,1727820751528,-871.7,0.00039178,120]
[339667595,1727820751538,-500.0,0.00039178,120]
[339667596,1727820751547,-500.0,0.00039178,120]
[339667597,1727820751556,-634.09,0.00039178,120]
[339667598,1727820751566,-500.0,0.00039178,120]
[339667599,1727820751575,-2173.94,0.00039178,120]
[339667600,1727820751585,-500.0,0.00039178,120]
[339667601,1727820751595,-975.58,0.00039178,120]
[339667602,1727820751604,-500.0,0.00039178,120]
[339667603,1727820751613,-1402.75,0.00039178,120]
[339667604,1727820751622,-500.0,0.00039178,120]
[339667605,1727820751632,-880.81,0.00039178,120]
[339667606,1727820751644,-2426.66,0.00039178,120]
[339667607,1727820751656,-902.4,0.00039178,120]
[339667608,1727820751666,-500.0,0.00039178,120]
[339667609,1727820751677,-666.13,0.00039178,120]
[339667610,1727820751690,-500.0,0.00039178,120]
[339667611,1727820751701,-500.0,0.00039178,120]
[339667612,1727820751710,-500.0,0.00039178,120]
[339667613,1727820751723,-1238.19,0.00039178,120]
[339667614,1727820751732,-500.0,0.00039178,120]
[339667615,1727820751741,-907.98,0.00039178,120]
[339667616,1727820751751,-2210.55,0.00039178,120]
[339667617,1727820751760,-500.0,0.00039178,120]
[339667618,1727820751769,-1798.18,0.00039178,120]
[339667619,1727820751781,-500.0,0.00039178,120]
[339667620,1727820751790,-2470.03,0.00039178,120]
[339667621,1727820751800,-500.0,0.00039178,120]
[339667622,1727820751809,-996.57,0.00039178,120]
[339667623,1727820751818,-500.0,0.00039178,120]
[339667624,1727820751828,-525.13253891,0.00039178,120]
[339667625,1727820751837,-2061.0,0.00039178,120]
[339667626,1727820751846,-500.0,0.00039178,120]
[339667627,1727820751855,-500.0,0.00039178,120]
[339667628,1727820751864,-500.0,0.00039178,120]
[339667629,1727820751874,-602.42,0.00039178,120]
[339667630,1727820751883,-500.0,0.00039178,120]
[339667631,1727820751892,-1172.0,0.00039178,120]
[339667632,1727820751901,-1419.38,0.00039178,120]
[339667633,1727820751910,-3467.23,0.00039178,120]
[339667634,1727820751920,-1691.93,0.00039178,120]
[339667635,1727820751929,-500.0,0.00039178,120]
[339667636,1727820751938,-500.0,0.00039178,120]
[339667637,1727820751947,-4101.04,0.00039178,120]
[339667638,1727820751955,-500.0,0.00039178,120]
[339667639,1727820751965,-500.0,0.00039178,120]
[339667640,1727820751974,-677.33,0.00039178,120]
[339667641,1727820751983,-833.05,0.00039178,120]
[339667642,1727820751992,-505.41160539,0.00039178,120]
[339667643,1727820752001,-500.0,0.00039178,120]
[339667644,1727820752011,-3464.91,0.00039178,2]
[339667645,1727820752020,-1956.73,0.00039178,120]
[339667646,1727820752031,-1946.23,0.00039178,120]
[339667647,1727820752040,-617.9,0.00039178,120]
[339667648,1727820752049,-1639.32,0.00039178,120]
[339667649,1727820752059,-2100.71,0.00039178,120]
[339667650,1727820752068,-500.0,0.00039178,120]
[339667651,1727820752077,-1660.84,0.00039178,120]
[339667652,1727820752087,-2862.61,0.00039178,120]
[339667653,1727820752096,-500.0,0.00039178,120]
[339667654,1727820752105,-500.0,0.00039178,120]
[339667655,1727820752114,-500.0,0.00039178,7]
[339667656,1727820752124,-500.0,0.00039178,120]
[339667657,1727820752133,-500.0,0.00039178,120]
[339667658,1727820752142,-500.0,0.00039178,120]
[339667659,1727820752151,-2844.86,0.00039178,120]
[339667660,1727820752160,-562.19,0.00039178,120]
[339667661,1727820752170,-1513.2,0.00039178,120]
[339667662,1727820752179,-1836.7,0.00039178,120]
[339667663,1727820752189,-1702.59,0.00039178,120]
[339667664,1727820752198,-500.0,0.00039178,120]
[339667665,1727820752207,-500.0,0.00039178,120]
[339667666,1727820752217,-500.0,0.00039178,120]
[339667667,1727820752226,-4515.07,0.00039178,120]
[339667668,1727820752236,-527.16,0.00039178,120]
[339667669,1727820752245,-2408.38,0.00039178,120]
[339667670,1727820752255,-713.01,0.00039178,120]
[339667671,1727820752264,-1779.61,0.00039178,120]
[339667672,1727820752273,-1463.81,0.00039178,120]
[339667673,1727820752283,-754.74,0.00039178,120]
[339667674,1727820752293,-1385.69,0.00039178,120]
[339667675,1727820752302,-909.5,0.00039178,120]
[339667676,1727820752312,-500.0,0.00039178,120]
[339667677,1727820752321,-500.0,0.00039178,120]
[339667678,1727820752332,-727.88,0.00039178,120]
[339667679,1727820752342,-500.0,0.00039178,120]
[339667680,1727820752351,-500.0,0.00039178,120]
[339667681,1727820752361,-565.09,0.00039178,120]
[339667682,1727820752371,-1971.06,0.00039178,120]
[339667683,1727820752380,-500.0,0.00039178,120]
[339667684,1727820752390,-1489.52,0.00039178,120]
[339667685,1727820752399,-532.71,0.00039178,120]
[339667686,1727820752409,-631.55,0.00039178,120]
[339667687,1727820752418,-2949.18,0.00039178,120]
[339667688,1727820752428,-1129.67,0.00039178,120]
[339667689,1727820752438,-500.0,0.00039178,7]
[339667690,1727820752447,-632.15,0.00039178,120]
[339667691,1727820752457,-3225.97,0.00039178,120]
[339667692,1727820752466,-692.07,0.00039178,120]
[339667693,1727820752476,-534.81,0.00039178,120]
[339667694,1727820752609,-1721.35,0.00039178,120]
[339667695,1727820752619,-500.0,0.00039178,120]
[339667696,1727820752628,-500.0,0.00039178,120]
[339667697,1727820752639,-500.0,0.00039178,120]
[339667698,1727820752651,-546.17,0.00039178,120]
[339667699,1727820752661,-500.0,0.00039178,120]
[339667700,1727820752672,-500.0,0.00039178,120]
[339667701,1727820752682,-500.0,0.00039178,120]
[339667702,1727820752693,-650.82,0.00039178,120]
[339667703,1727820752703,-500.0,0.00039178,120]
[339667704,1727820752712,-500.0,0.00039178,120]
[339667705,1727820752722,-500.0,0.00039178,120]
[339667706,1727820752732,-1437.52,0.00039178,120]
[339667707,1727820752743,-518.0,0.00039178,120]
[339667708,1727820752753,-2907.14,0.00039178,120]
[339667709,1727820752763,-2926.57,0.00039178,120]
[339667710,1727820752772,-1025.17,0.00039178,120]
[339667711,1727820752783,-500.0,0.00039178,120]
[339667712,1727820752793,-500.0,0.00039178,120]
[339667713,1727820752802,-500.0,0.00039178,120]
[339667714,1727820752812,-1407.77,0.00039178,120]
[339667715,1727820752822,-860.32,0.00039178,120]
[339667716,1727820752831,-730.5,0.00039178,120]
[339667717,1727820752841,-500.0,0.00039178,120]
[339667718,1727820752851,-1168.59,0.00039178,120]
[339667719,1727820752860,-1143.54,0.00039178,120]
[339667720,1727820752870,-500.0,0.00039178,120]
[339667721,1727820752880,-500.0,0.00039178,120]
[339667722,1727820752889,-500.0,0.00039178,120]
[339667723,1727820752899,-773.63,0.00039178,120]
[339667724,1727820752909,-505.48252061,0.00039178,120]
[339667725,1727820752918,-500.0,0.00039178,120]
[339667726,1727820752928,-660.94,0.00039178,120]
[339667727,1727820752937,-3040.17,0.00039178,120]
[339667728,1727820752947,-500.0,0.00039178,120]
[339667729,1727820752956,-942.17,0.00039178,120]
[339667730,1727820752967,-705.58,0.00039178,120]
[339667731,1727820752977,-668.07,0.00039178,120]
[339667732,1727820752987,-500.0,0.00039178,120]
[339667733,1727820752997,-4496.99,0.00039178,120]
[339667734,1727820753006,-1286.0,0.00039178,120]
[339667735,1727820753016,-500.0,0.00039178,120]
[339667736,1727820753027,-3133.99,0.00039178,120]
[339667737,1727820753037,-500.0,0.00039178,120]
[339667738,1727820753047,-500.0,0.00039178,120]
[339667739,1727820753057,-1188.4,0.00039178,120]
[339667740,1727820753067,-1397.93,0.00039178,120]
[339667741,1727820753077,-629.91,0.00039178,120]
[339667742,1727820753086,-500.0,0.00039178,120]
[339667743,1727820753097,-500.0,0.00039178,120]
[339667744,1727820753107,-3743.21,0.00039178,120]
[339667745,1727820753117,-500.0,0.00039178,120]
[339667746,1727820753127,-597.89,0.00039178,120]
[339667747,1727820753137,-969.44,0.00039178,120]
[339667748,1727820753147,-500.0,0.00039178,120]
[339667749,1727820753156,-1991.74,0.00039178,120]
[339667750,1727820753166,-1053.39,0.00039178,120]
[339667751,1727820753175,-1515.24,0.00039178,120]
[339667752,1727820753185,-500.0,0.00039178,120]
[339667753,1727820753194,-500.0,0.00039178,120]
[339667754,1727820753204,-500.0,0.00039178,120]
[339667755,1727820753213,-500.0,0.00039178,120]
[339667756,1727820753223,-700.15,0.00039178,120]
[339667757,1727820753232,-500.0,0.00039178,120]
[339667758,1727820753242,-1506.61,0.00039178,120]
[339667759,1727820753252,-515.1,0.00039178,120]
[339667760,1727820753262,-1051.28,0.00039178,120]
[339667761,1727820753273,-567.36,0.00039178,120]
[339667762,1727820753284,-500.0,0.00039178,120]
[339667763,1727820753293,-956.15,0.00039178,120]
[339667764,1727820753303,-500.0,0.00039178,120]
[339667765,1727820753312,-500.0,0.00039178,120]
[339667766,1727820753322,-3675.33,0.00039178,120]
[339667767,1727820753333,-502.12235033,0.00039178,120]
[339667768,1727820753343,-500.0,0.00039178,120]
[339667769,1727820753353,-1785.58,0.00039178,120]
[339667770,1727820753363,-481.46652645,0.00039178,120]
[339667771,1727820753372,-500.0,0.00039178,120]
[339667772,1727820753382,-535.14,0.00039178,120]
[339667773,1727820753392,-500.0,0.00039178,120]
[339667774,1727820753401,-188.86686112,0.00039178,120]
[339667775,1727820753411,-500.0,0.00039178,120]
[339667776,1727820753421,-500.0,0.00039178,120]
[339667777,1727820753431,-1336.37,0.00039178,120]
[339667778,1727820753441,-500.0,0.00039178,120]
[339667779,1727820753451,-2586.99,0.00039178,120]
[339667780,1727820753461,-500.0,0.00039178,120]
[339667781,1727820753472,-500.0,0.00039178,120]
[339667782,1727820753482,-2647.49,0.00039178,120]
[339667783,1727820753492,-778.95,0.00039178,120]
[339667784,1727820753502,-500.0,0.00039178,120]
[339667785,1727820753512,-1825.45,0.00039178,120]
[339667786,1727820753522,-890.0,0.00039178,120]
[339667787,1727820753534,-954.63,0.00039178,120]
[339667788,1727820753544,-500.0,0.00039178,120]
[339667789,1727820753555,-500.0,0.00039178,120]
[339667790,1727820753566,-500.0,0.00039178,120]
[339667791,1727820753576,-3668.63,0.00039178,120]
[339667792,1727820753587,-769.11,0.00039178,120]
[339667793,1727820753597,-5154.82,0.00039178,120]
[339667794,1727820753607,-500.0,0.00039178,120]
[339667795,1727820753618,-500.0,0.00039178,120]
[339667796,1727820753629,-500.0,0.00039178,120]
[339667797,1727820753639,-947.87,0.00039178,120]
[339667798,1727820753652,-500.0,0.00039178,120]
[339667799,1727820753662,-1126.54,0.00039178,120]
[339667800,1727820753672,-540.91108457,0.00039178,120]
[339667801,1727820753682,-2928.52,0.00039178,120]
[339667802,1727820753693,-500.0,0.00039178,120]
[339667803,1727820753703,-500.0,0.00039178,120]
[339667804,1727820753713,-895.68,0.00039178,120]
[339667805,1727820753725,-500.0,0.00039178,120]
[339667806,1727820753735,-500.0,0.00039178,120]
[339667807,1727820753746,-3582.35,0.00039178,120]
[339667808,1727820753756,-500.0,0.00039178,120]
[339667809,1727820753767,-626.88,0.00039178,120]
[339667810,1727820753778,-3186.82,0.00039178,120]
[339667811,1727820753789,-500.0,0.00039178,120]
[339667812,1727820753799,-500.0,0.00039178,120]
[339667813,1727820753810,-881.7,0.00039178,120]
[339667814,1727820753822,-500.0,0.00039178,120]
[339667815,1727820753832,-500.0,0.00039178,120]
[339667816,1727820753842,-1958.05,0.00039178,120]
[339667817,1727820753852,-500.0,0.00039178,120]
[339667818,1727820753863,-557.58,0.00039178,120]
[339667819,1727820753873,-767.78,0.00039178,120]
[339667820,1727820753883,-5802.43,0.00039178,120]
[339667821,1727820753894,-500.0,0.00039178,120]
[339667822,1727820753905,-825.32,0.00039178,120]
[339667823,1727820753915,-859.85,0.00039178,120]
[339667824,1727820753926,-4024.18,0.00039178,120]
[339667825,1727820753936,-500.0,0.00039178,120]
[339667826,1727820753946,-715.33,0.00039178,120]
[339667827,1727820753956,-600.91,0.00039178,120]
[339667828,1727820753966,-1644.4,0.00039178,120]
[339667829,1727820753977,-500.0,0.00039178,120]
[339667830,1727820753987,-500.0,0.00039178,120]
[339667831,1727820753997,-1605.08,0.00039178,120]
[339667832,1727820754007,-500.0,0.00039178,120]
[339667833,1727820754017,-500.0,0.00039178,120]
[339667834,1727820754028,-3238.34,0.00039178,120]
[339667835,1727820754040,-500.0,0.00039178,120]
[339667836,1727820754050,-500.0,0.00039178,120]
[339667837,1727820754060,-1054.99,0.00039178,120]
[339667838,1727820754070,-500.0,0.00039178,120]
[339667839,1727820754080,-3916.65,0.00039178,120]
[339667840,1727820754090,-500.0,0.00039178,120]
[339667841,1727820754100,-705.94,0.00039178,120]
[339667842,1727820754110,-974.68,0.00039178,120]
[339667843,1727820754119,-500.0,0.00039178,120]
[339667844,1727820754129,-6174.97,0.00039178,120]
[339667845,1727820754140,-500.0,0.00039178,120]
[339667846,1727820754150,-658.12,0.00039178,120]
[339667847,1727820754160,-775.59,0.00039178,120]
[339667848,1727820754171,-500.0,0.00039178,120]
[339667849,1727820754181,-500.0,0.00039178,120]
[339667850,1727820754191,-500.0,0.00039178,120]
[339667851,1727820754200,-500.0,0.00039178,120]
[339667852,1727820754210,-1372.39,0.00039178,120]
[339667853,1727820754220,-500.0,0.00039178,120]
[339667854,1727820754230,-500.0,0.00039178,120]
[339667855,1727820754239,-1520.88,0.00039178,120]
[339667856,1727820754249,-1297.71,0.00039178,120]
[339667857,1727820754259,-500.0,0.00039178,120]
[339667858,1727820754270,-500.0,0.00039178,120]
[339667859,1727820754283,-3150.26,0.00039178,120]
[339667860,1727820754293,-500.0,0.00039178,120]
[339667861,1727820754303,-500.0,0.00039178,120]
[339667862,1727820754313,-516.83578185,0.00039178,120]
[339667863,1727820754324,-3394.19,0.00039178,120]
[339667864,1727820754335,-5095.45,0.00039178,120]
[339667865,1727820754345,-500.0,0.00039178,120]
[339667866,1727820754355,-1142.69,0.00039178,120]
[339667867,1727820754365,-1053.24,0.00039178,120]
[339667868,1727820754375,-2187.58,0.00039178,120]
[339667869,1727820754385,-4714.56,0.00039178,120]
[339667870,1727820754395,-500.0,0.00039178,120]
[339667871,1727820754405,-1671.69,0.00039178,120]
[339667872,1727820754416,-3883.23,0.00039178,120]
[339667873,1727820754426,-500.0,0.00039178,120]
[339667874,1727820754436,-17549.28,0.00039178,120]
[339667875,1727820754446,-1292.14,0.00039178,120]
[339667876,1727820754456,-505.49583282,0.00039178,120]
[339667877,1727820754466,-788.0,0.00039178,120]
[339667878,1727820754476,-500.0,0.00039178,120]
[339667879,1727820754486,-638.54,0.00039178,120]
[339667880,1727820754496,-500.0,0.00039178,120]
[339667881,1727820754505,-396.01,0.00039178,7]
[339667882,1727820754515,-635.99986473,0.00039178,120]
[339667883,1727820754525,-1235.86,0.00039178,120]
[339667884,1727820754537,-500.0,0.00039178,120]
[339667885,1727820754549,-2860.26,0.00039178,120]
[339667886,1727820754559,-1610.29,0.00039178,120]
[339667887,1727820754570,-500.0,0.00039178,120]
[339667888,1727820754580,-712.51,0.00039178,120]
[339667889,1727820754591,-500.0,0.00039178,120]
[339667890,1727820754601,-2386.75,0.00039178,120]
[339667891,1727820754611,-500.0,0.00039178,120]
[339667892,1727820754622,-806.81,0.00039178,120]
[339667893,1727820754633,-500.0,0.00039178,120]
[339667894,1727820754644,-500.0,0.00039178,120]
[339667895,1727820754655,-4893.53,0.00039178,120]
[339667896,1727820754666,-767.39,0.00039178,120]
[339667897,1727820754675,-500.0,0.00039178,120]
[339667898,1727820754685,-490.65770795,0.00039178,120]
[339667899,1727820754696,-825.12,0.00039178,120]
[339667900,1727820754706,-500.0,0.00039178,120]
[339667901,1727820754716,-1123.02,0.00039178,120]
[339667902,1727820754728,-1398.64,0.00039178,120]
[339667903,1727820754739,-228.77663795,0.00039178,120]
[339667904,1727820754749,-2555.24,0.00039178,120]
[339667905,1727820754759,-3466.7,0.00039178,120]
[339667906,1727820754769,-2011.18,0.00039178,120]
[339667907,1727820754780,-500.0,0.00039178,120]
[339667908,1727820754791,-2209.57,0.00039178,120]
[339667909,1727820754801,-500.0,0.00039178,120]
[339667910,1727820754811,-1207.96,0.00039178,120]
[339667911,1727820754822,-500.0,0.00039178,120]
[339667912,1727820754832,-500.0,0.00039178,120]
[339667913,1727820754842,-4914.93,0.00039178,120]
[339667914,1727820755160,-2617.4,0.00039178,120]
[339667915,1727820755175,-2149.87,0.00039178,120]
[339667916,1727820755185,-1890.45,0.00039178,120]
[339667917,1727820755195,-500.0,0.00039178,120]
[339667918,1727820755205,-473.38339363,0.00039178,120]